fUST/lending_fUST_20251030
["ID","MTS","AMOUNT","RATE_DAILY","PERIOD"]
[392705537,1761835843433,-286.7518139,0.00045833,2]
[392705539,1761835843443,-509.7810025,0.00045833,2]
[392705541,1761835843454,-796.5328164,0.00045833,2]
[392705543,1761835843465,-269.1589305,0.00045833,2]
[392705545,1761835843479,-484.4860749,0.00045833,2]
[392705547,1761835843490,-149.20997104,0.00045833,2]
[392705550,1761835843506,-510.7241531,0.00045833,2]
[392705552,1761835843519,-201.37445346,0.00045833,2]
[392705554,1761835843529,-213.69986547,0.00045833,2]
[392705661,1761835846326,-264.577,0.00037224,2]
[392705662,1761835846338,-500.0,0.00043835,120]
[392705663,1761835846455,-566.03159222,0.00043835,120]
[392705665,1761835846469,-500.0,0.00044109,120]
[392705667,1761835846482,-188.74661187,0.00044383,120]
[392705669,1761835846491,-1132.09478702,0.00045833,2]
[392705671,1761835846501,-1937.94429959,0.00045833,2]
[392705673,1761835846510,-246.74486848,0.00045833,2]
[392705674,1761835846519,-444.14076326,0.00045833,2]
[392705676,1761835846529,-378.76795683,0.0004585,4]
[392705678,1761835846539,-500.0,0.00045859,120]
[392705680,1761835846548,-500.0,0.00045859,2]
[392705681,1761835846557,-150.0,0.00045908,2]
[392705682,1761835846566,-621.55,0.00046027,120]
[392705683,1761835846576,-678.02,0.00046027,120]
[392705684,1761835846586,-500.0,0.00046027,120]
[392705686,1761835846595,-500.0,0.00046027,120]
[392705688,1761835846605,-500.0,0.00046027,120]
[392705689,1761835846615,-606.25,0.00046027,120]
[392705691,1761835846625,-725.48,0.00046027,120]
[392705692,1761835846634,-500.0,0.00046027,120]
[392705693,1761835846643,-472.01212074,0.00046301,120]
[392705694,1761835846655,-149.53787926,0.00046301,120]
[392705695,1761835846664,-678.02,0.00046301,120]
[392705696,1761835846673,-500.0,0.00046301,120]
[392705697,1761835846682,-500.0,0.00046301,120]
[392705698,1761835846691,-500.0,0.00046301,120]
[392705699,1761835846700,-606.25,0.00046301,120]
[392705700,1761835846710,-725.48,0.00046301,120]
[392705701,1761835846719,-500.0,0.00046301,120]
[392705702,1761835846730,-621.55,0.00046575,120]
[392705703,1761835846739,-678.02,0.00046575,120]
[392705704,1761835846749,-500.0,0.00046575,120]
[392705705,1761835846758,-500.0,0.00046575,120]
[392705706,1761835846767,-250.08324162,0.00046575,120]
[392705707,1761835846776,-606.25,0.00046575,120]
[392705708,1761835846785,-725.48,0.00046575,120]
[392705709,1761835846795,-500.0,0.00046575,120]
[392705710,1761835846804,-447.0,0.00046638,120]
[392705711,1761835846813,-745.37919949,0.00046768,7]
[392705712,1761835846822,-165.11961316,0.00046805,2]
[392705713,1761835846831,-150.0,0.00046806,30]
[392705714,1761835846840,-621.55,0.00046849,120]
[392705715,1761835846849,-678.02,0.00046849,120]
[392705716,1761835846858,-500.0,0.00046849,120]
[392705717,1761835846868,-500.0,0.00046849,120]
[392705718,1761835846877,-606.25,0.00046849,120]
[392705719,1761835846886,-725.48,0.00046849,120]
[392705720,1761835846895,-500.0,0.00046849,120]
[392705721,1761835846905,-502.33587533,0.00046945,3]
[392705722,1761835846914,-442.16124695,0.00046945,3]
[392705723,1761835846923,-1236.04563264,0.00046945,3]
[392705724,1761835846932,-155.0,0.00047,120]
[392705725,1761835846941,-684.84949067,0.00047027,3]
[392705726,1761835846950,-270.6505876,0.00047043,2]
[392705727,1761835846959,-598.26,0.00047113,10]
[392705728,1761835846968,-621.55,0.00047123,120]
[392705729,1761835846979,-678.02,0.00047123,120]
[392705730,1761835846988,-500.0,0.00047123,120]
[392705731,1761835846997,-580.11294727,0.00047123,120]
[392705732,1761835847006,-606.25,0.00047123,120]
[392705733,1761835847015,-725.48,0.00047123,120]
[392705734,1761835847033,-500.0,0.00047123,120]
[392705735,1761835847043,-173.826021,0.00047247,2]
[392705736,1761835847053,-621.55,0.00047397,120]
[392705737,1761835847062,-678.02,0.00047397,120]
[392705738,1761835847072,-500.0,0.00047397,120]
[392705739,1761835847082,-606.25,0.00047397,120]
[392705740,1761835847091,-725.48,0.00047397,120]
[392705741,1761835847101,-500.0,0.00047397,120]
[392705742,1761835847111,-621.55,0.00047671,120]
[392705743,1761835847120,-678.02,0.00047671,120]
[392705744,1761835847129,-413.62376702,0.00047671,120]
[392705745,1761835847139,-606.25,0.00047671,120]
[392705746,1761835847149,-725.48,0.00047671,120]
[392705747,1761835847158,-629.30406332,0.00047671,120]
[392705748,1761835847168,-621.55,0.00047945,120]
[392705749,1761835847177,-678.02,0.00047945,120]
[392705750,1761835847186,-606.25,0.00047945,120]
[392705751,1761835847196,-725.48,0.00047945,120]
[392705752,1761835847205,-1341.21,0.00048,14]
[392705753,1761835847215,-621.55,0.00048219,120]
[392705754,1761835847225,-678.02,0.00048219,120]
[392705755,1761835847234,-606.25,0.00048219,120]
[392705756,1761835847244,-725.48,0.00048219,120]
[392705757,1761835847254,-621.55,0.00048493,120]
[392705758,1761835847263,-678.02,0.00048493,120]
[392705759,1761835847273,-606.25,0.00048493,120]
[392705760,1761835847283,-725.48,0.00048493,120]
[392705761,1761835847297,-474.0,0.00048638,120]
[392705762,1761835847306,-621.55,0.00048767,120]
[392705763,1761835847316,-678.02,0.00048767,120]
[392705764,1761835847327,-606.25,0.00048767,120]
[392705765,1761835847339,-725.48,0.00048767,120]
[392705766,1761835847348,-1000.0,0.000488,120]
[392705767,1761835847357,-1000.0,0.000488,120]
[392705768,1761835847369,-1000.0,0.000488,120]
[392705769,1761835847379,-1000.0,0.000488,120]
[392705770,1761835847388,-1000.0,0.000488,120]
[392705771,1761835847398,-1000.0,0.000488,120]
[392705772,1761835847408,-1000.0,0.000488,120]
[392705773,1761835847418,-1000.0,0.000488,120]
[392705774,1761835847428,-1000.0,0.000488,120]
[392705775,1761835847438,-311.97070424,0.00049,15]
[392705776,1761835847447,-173.826021,0.00049,15]
[392705777,1761835847458,-1000.0,0.00049,120]
[392705778,1761835847468,-621.55,0.00049041,120]
[392705779,1761835847479,-678.02,0.00049041,120]
[392705780,1761835847489,-606.25,0.00049041,120]
[392705781,1761835847499,-725.48,0.00049041,120]
[392705782,1761835847509,-378.76795683,0.00049305,4]
[392705783,1761835847519,-621.55,0.00049315,120]
[392705784,1761835847528,-678.02,0.00049315,120]
[392705785,1761835847538,-606.25,0.00049315,120]
[392705786,1761835847548,-725.48,0.00049315,120]
[392705787,1761835847557,-165.11961316,0.00049337,2]
[392705788,1761835847568,-160.0,0.00049342,5]
[392705789,1761835847577,-500.0,0.00049343,120]
[392705790,1761835847587,-500.0,0.00049343,120]
[392705791,1761835847597,-500.0,0.00049343,2]
[392705792,1761835847607,-167.271639,0.00049387,5]
[392705793,1761835847617,-500.0,0.00049443,120]
[392705794,1761835847627,-500.0,0.00049443,120]
[392705795,1761835847637,-500.0,0.00049443,120]
[392705796,1761835847646,-500.0,0.00049443,120]
[392705797,1761835847656,-500.0,0.00049443,120]
[392705798,1761835847666,-500.0,0.00049443,120]
[392705799,1761835847675,-500.0,0.00049443,120]
[392705800,1761835847685,-438.37,0.00049443,120]
[392705801,1761835847694,-500.0,0.00049443,2]
[392705802,1761835847704,-500.0,0.00049443,2]
[392705803,1761835847714,-24702.9257,0.00049444,30]
[392705804,1761835847725,-2403.9485474,0.00049474,12]
[392705805,1761835847735,-181.87,0.00049513,2]
[392705806,1761835847744,-621.55,0.00049589,120]
[392705807,1761835847754,-678.02,0.00049589,120]
[392705808,1761835847764,-606.25,0.00049589,120]
[392705809,1761835847773,-725.48,0.00049589,120]
[392705810,1761835847783,-500.0,0.000497,120]
[392705811,1761835847793,-1000.0,0.00049701,90]
[392705812,1761835847803,-791.0,0.00049701,90]
[392705813,1761835847812,-621.55,0.00049863,120]
[392705814,1761835847822,-678.02,0.00049863,120]
[392705815,1761835847831,-606.25,0.00049863,120]
[392705816,1761835847841,-725.48,0.00049863,120]
[392705817,1761835847851,-378.76795683,0.0004999,4]
[392705818,1761835847860,-351.91826978,0.0004999,2]
[392705819,1761835847869,-1000.0,0.00049999,120]
[392705820,1761835847879,-221.06935234,0.0005,20]
[392705821,1761835847888,-532.03216747,0.0005,10]
[392705822,1761835847897,-199.0,0.0005,7]
[392705823,1761835847906,-5000.0,0.0005,5]
[392705824,1761835847915,-173.826021,0.0005,5]
[392705825,1761835847924,-155.0,0.0005,120]
[392705826,1761835847934,-1000.0,0.0005,120]
[392705827,1761835847943,-621.60433002,0.00050136,120]
[392705828,1761835847953,-678.23,0.00050136,120]
[392705829,1761835847963,-606.31,0.00050136,120]
[392705830,1761835847973,-725.4827425,0.00050136,120]
[392705831,1761835847983,-501.0,0.00050638,120]
[392705832,1761835847992,-1000.0,0.00050889,120]
[392705833,1761835848003,-1000.0,0.00050999,120]
[392705834,1761835848013,-835.0,0.00051,120]
[392705835,1761835848022,-1982.36,0.00051,14]
[392705836,1761835848033,-150.0,0.00051108,30]
[392705837,1761835848042,-1000.0,0.00051778,120]
[392705838,1761835848052,-165.11961316,0.00051868,2]
[392705839,1761835848062,-199.532989,0.00052632,2]
[392705840,1761835848072,-528.0,0.00052638,120]
[392705841,1761835848081,-1000.0,0.00052666,120]
[392705842,1761835848091,-1341.21,0.000527,14]
[392705843,1761835848100,-1000.0,0.00052999,120]
[392705844,1761835848110,-155.0,0.00053,120]
[392705845,1761835848119,-1910.27698799,0.00053,120]
[392705846,1761835848128,-227.34,0.0005305,2]
[392705847,1761835848138,-200.0,0.00053235,120]
[392705848,1761835848148,-1000.0,0.00053555,120]
[392705849,1761835848158,-1000.0,0.00054,120]
[392705850,1761835848168,-200.0,0.0005409,120]
[392705851,1761835848178,-4999.98,0.000542,120]
[392705852,1761835848188,-10471.943755,0.00054341,2]
[392705853,1761835848197,-1086.2290627,0.00054341,2]
[392705854,1761835848206,-2152.78831136,0.00054366,120]
[392705855,1761835848216,-757.53591366,0.00054388,4]
[392705856,1761835848227,-500.0,0.00054397,120]
[392705857,1761835848237,-500.0,0.00054397,120]
[392705858,1761835848246,-500.0,0.00054397,120]
[392705859,1761835848255,-500.0,0.00054397,120]
[392705860,1761835848265,-500.0,0.00054397,120]
[392705861,1761835848274,-92748.02,0.00054398,7]
[392705862,1761835848286,-4226.08755375,0.000544,2]
[392705863,1761835848296,-165.11961316,0.000544,2]
[392705864,1761835848306,-378.76795683,0.00054433,4]
[392705865,1761835848315,-3787.6795683,0.00054434,4]
[392705866,1761835848325,-1000.0,0.00054443,120]
[392705867,1761835848335,-500.0,0.00054443,120]
[392705868,1761835848344,-595.90445572,0.00054443,120]
[392705869,1761835848354,-151.0,0.00054443,30]
[392705870,1761835848367,-305.56121709,0.00054443,30]
[392705871,1761835848377,-151.0,0.00054443,30]
[392705872,1761835848387,-156.587,0.00054443,30]
[392705873,1761835848396,-151.0,0.00054443,30]
[392705874,1761835848405,-174.1825246,0.00054443,30]
[392705875,1761835848415,-151.0,0.00054443,30]
[392705876,1761835848424,-1888.0,0.00054443,30]
[392705877,1761835848434,-2030.296672,0.00054443,30]
[392705878,1761835848443,-1000.0,0.00054443,30]
[392705879,1761835848453,-414.0,0.00054443,30]
[392705880,1761835848462,-1000.0,0.00054443,30]
[392705881,1761835848472,-151.0,0.00054443,30]
[392705882,1761835848482,-151.0,0.00054443,30]
[392705883,1761835848491,-1000.0,0.00054443,30]
[392705884,1761835848501,-429.318,0.00054443,30]
[392705885,1761835848510,-156.587,0.00054443,30]
[392705886,1761835848520,-156.587,0.00054443,30]
[392705887,1761835848530,-174.18252461,0.00054443,30]
[392705888,1761835848540,-1149.76074216,0.00054443,30]
[392705889,1761835848549,-445.202766,0.00054443,30]
[392705890,1761835848558,-174.1825246,0.00054443,30]
[392705891,1761835848568,-461.67526834,0.00054443,30]
[392705892,1761835848577,-151.0,0.00054443,30]
[392705893,1761835848587,-152.40698897,0.00054443,30]
[392705894,1761835848596,-250.0,0.00054443,30]
[392705895,1761835848606,-250.0,0.00054443,30]
[392705896,1761835848616,-250.0,0.00054443,30]
[392705897,1761835848626,-500.0,0.00054443,30]
[392705898,1761835848636,-500.0,0.00054443,30]
[392705899,1761835848646,-500.0,0.00054443,30]
[392705900,1761835848656,-250.0,0.00054443,30]
[392705901,1761835848666,-250.0,0.00054443,30]
[392705902,1761835848675,-250.0,0.00054443,30]
[392705903,1761835848685,-250.0,0.00054443,30]
[392705904,1761835848695,-151.0,0.00054443,30]
[392705905,1761835848705,-151.0,0.00054443,30]
[392705906,1761835848715,-151.0,0.00054443,30]
[392705907,1761835848724,-151.0,0.00054444,120]
[392705908,1761835848734,-151.0,0.00054444,120]
[392705909,1761835848744,-151.0,0.00054444,120]
[392705910,1761835848753,-151.0,0.00054444,120]
[392705911,1761835848762,-151.0,0.00054444,120]
[392705912,1761835848771,-151.0,0.00054444,120]
[392705913,1761835848781,-297.367241,0.00054444,120]
[392705914,1761835848790,-1008.45342169,0.00054444,120]
[392705915,1761835848799,-440910.63369576,0.00054444,30]
[392705950,1761836453921,1001.58003667,5.3e-05,120]
[392705952,1761836640003,657.0,0.00030136,120]
[392705986,1761837032981,-150.0,0.00025547,2]
[392705988,1761837032992,-160.0,0.00027262,2]
[392705990,1761837033003,-151.0,0.00027265,2]
[392705992,1761837033014,-151.0,0.00027265,2]
[392705994,1761837033026,-151.0,0.00027265,2]
[392705995,1761837033037,-151.0,0.00027265,2]
[392705996,1761837033047,-151.0,0.00027265,2]
[392705997,1761837033057,-151.0,0.00027265,2]
[392705998,1761837033068,-151.0,0.00027265,2]
[392705999,1761837033079,-151.0,0.00027265,2]
[392706000,1761837033090,-151.0,0.00027265,2]
[392706001,1761837033100,-151.0,0.00027265,2]
[392706002,1761837033110,-151.0,0.00027265,2]
[392706003,1761837033120,-151.0,0.00027265,2]
[392706004,1761837033132,-151.0,0.00027265,2]
[392706005,1761837033143,-151.0,0.00027265,2]
[392706006,1761837033155,-151.0,0.00027265,2]
[392706007,1761837033166,-151.0,0.00027265,2]
[392706008,1761837033177,-151.0,0.00027265,2]
[392706009,1761837033187,-151.0,0.00027265,2]
[392706010,1761837033198,-151.0,0.00027265,2]
[392706011,1761837033208,-151.0,0.00027265,2]
[392706012,1761837033221,-111.0,0.00027278,2]
[392706013,1761837033389,-634.0,0.00027278,2]
[392706014,1761837033400,-300.0,0.00027278,2]
[392706015,1761837033411,-977.0,0.00027278,2]
[392706016,1761837033422,-9290.16299201,0.00027279,2]
[392706017,1761837033450,-18742.99118663,0.00027279,2]
[392706018,1761837033462,-3585.45920733,0.00027279,2]
[392706045,1761837038441,-500.0,0.00027278,2]
[392706047,1761837038455,-40.75,0.00027278,2]
[392706049,1761837038466,-459.25,0.00027278,2]
[392706051,1761837038476,-500.0,0.00027278,2]
[392706053,1761837038486,-500.0,0.00027278,2]
[392706055,1761837038497,-500.0,0.00027278,2]
[392706057,1761837038507,-500.0,0.00027278,2]
[392706059,1761837038518,-582.86423201,0.00027278,2]
[392706061,1761837038527,-500.0,0.00027278,2]
[392706063,1761837038537,-500.0,0.00027278,2]
[392706065,1761837038546,-500.0,0.00027278,2]
[392706066,1761837038555,-500.0,0.00027278,2]
[392706068,1761837038565,-500.0,0.00027278,2]
[392706071,1761837038575,-500.0,0.00027278,2]
[392706073,1761837038585,-500.0,0.00027278,2]
[392706075,1761837038595,-456.9614739,0.00027278,2]
[392706077,1761837038610,-500.0,0.00027278,2]
[392706079,1761837038620,-500.0,0.00027278,2]
[392706081,1761837038630,-476.89028991,0.00027278,2]
[392706083,1761837038640,-500.0,0.00027278,2]
[392706085,1761837038650,-57.59694843,0.00027278,2]
[392706088,1761837038663,-442.40305157,0.00027278,2]
[392706090,1761837038673,-500.0,0.00027278,2]
[392706092,1761837038683,-500.0,0.00027278,2]
[392706094,1761837038693,-500.0,0.00027278,2]
[392706096,1761837038703,-500.0,0.00027278,2]
[392706098,1761837038713,-500.0,0.00027278,2]
[392706099,1761837038724,-500.0,0.00027278,2]
[392706101,1761837038735,-500.0,0.00027278,2]
[392706103,1761837038744,-500.0,0.00027278,2]
[392706105,1761837038755,-500.0,0.00027278,2]
[392706107,1761837038765,-500.0,0.00027278,2]
[392706109,1761837038774,-392.43300998,0.00027278,2]
[392706111,1761837038784,-500.0,0.00027278,2]
[392706112,1761837038795,-500.0,0.00027278,2]
[392706113,1761837038806,-500.0,0.00027278,2]
[392706114,1761837038816,-627.15027974,0.00027278,2]
[392706115,1761837038826,-500.0,0.00027278,2]
[392706116,1761837038836,-500.0,0.00027278,2]
[392706117,1761837038846,-500.0,0.00027278,2]
[392706118,1761837038856,-500.0,0.00027278,2]
[392706119,1761837038868,-500.0,0.00027278,2]
[392706120,1761837038878,-500.0,0.00027278,2]
[392706121,1761837038888,-500.0,0.00027278,2]
[392706122,1761837038898,-500.0,0.00027278,2]
[392706123,1761837038909,-2679.01078754,0.00027279,2]
[392706124,1761837038921,-15702.37582649,0.00027279,2]
[392706125,1761837038932,-200.0,0.00027284,2]
[392706126,1761837038942,-500.0,0.00027295,2]
[392706127,1761837038951,-200.0,0.00027506,15]
[392706128,1761837038961,-817.7470948,0.00027506,2]
[392706129,1761837038972,-195.164012,0.00027506,2]
[392706130,1761837038981,-2841.9898085,0.00027506,2]
[392706131,1761837038991,-999.0,0.00027506,2]
[392706132,1761837039001,-207.72325821,0.00027506,30]
[392706133,1761837039013,-792.27674179,0.00027506,30]
[392706134,1761837039022,-177.0,0.00027547,2]
[392706135,1761837039032,-183.03830985,0.00027843,30]
[392706136,1761837039043,-116.96169015,0.00027843,30]
[392706137,1761837039053,-300.0,0.00027843,30]
[392706138,1761837039063,-300.0,0.00027843,30]
[392706139,1761837039072,-300.0,0.00027843,30]
[392706140,1761837039082,-300.0,0.00027843,30]
[392706141,1761837039092,-300.0,0.00027843,30]
[392706142,1761837039102,-300.0,0.00027843,30]
[392706143,1761837039112,-300.0,0.00027843,30]
[392706144,1761837039121,-300.0,0.00027843,30]
[392706145,1761837039131,-300.0,0.00027843,30]
[392706146,1761837039141,-10.64062791,0.00027843,30]
[392706199,1761837040829,-289.35937209,0.00027843,30]
[392706201,1761837040838,-300.0,0.00027843,30]
[392706203,1761837040848,-300.0,0.00027843,30]
[392706205,1761837040857,-300.0,0.00027843,30]
[392706207,1761837040866,-137.3057374,0.00027843,30]
[392706360,1761837043620,-162.6942626,0.00027843,30]
[392706361,1761837043630,-600.0,0.00027843,30]
[392706362,1761837043640,-41.07799817,0.00027843,30]
[392706363,1761837043697,-109.92200183,0.00027843,30]
[392706365,1761837043707,-151.0,0.00027843,30]
[392706367,1761837043716,-151.0,0.00027898,30]
[392706369,1761837043727,-199.62533883,0.00027953,30]
[392706371,1761837043737,-500.0,0.00028573,2]
[392706373,1761837043746,-501.82991833,0.00028583,5]
[392706375,1761837043756,-500.0,0.00028583,5]
[392706377,1761837043765,-500.0,0.00028583,5]
[392706379,1761837043774,-500.0,0.0002879,5]
[392706381,1761837043784,-500.0,0.0002879,5]
[392706383,1761837043794,-379.59858134,0.0002879,5]
[392706656,1761837046646,-30.99876068,0.0002879,5]
[392706659,1761837046659,-502.44341967,0.0002879,5]
[392706661,1761837046669,-500.0,0.0002879,5]
[392706663,1761837046680,-501.73344918,0.0002879,5]
[392706665,1761837046690,-500.0,0.00029043,5]
[392706667,1761837046699,-500.0,0.00029043,5]
[392706669,1761837046708,-500.0,0.00029043,5]
[392706671,1761837046717,-531.96458233,0.00029043,5]
[392706673,1761837046729,-500.0,0.00029043,5]
[392706675,1761837046738,-500.0,0.00029043,5]
[392706677,1761837046747,-500.0,0.00029043,5]
[392706679,1761837046756,-500.0,0.00029043,5]
[392706681,1761837046767,-183.80303258,0.00029043,5]
[392706683,1761837046776,-500.6614067,0.00029043,5]
[392706685,1761837046787,-606.44208047,0.00029043,5]
[392706687,1761837046796,-215.44055156,0.00029111,2]
[392706689,1761837046807,-369.48468282,0.00029111,2]
[392706691,1761837046817,-500.0,0.00029111,2]
[392706693,1761837046827,-45.0221289,0.00029111,2]
[392706695,1761837046839,-454.9778711,0.00029111,2]
[392706698,1761837046848,-500.0,0.00029111,2]
[392706700,1761837046857,-500.0,0.00029111,2]
[392706702,1761837046867,-500.0,0.00029111,2]
[392706704,1761837046876,-338.6221289,0.00029111,2]
[392707017,1761837268631,200.0,0.0003,120]
[392707018,1761837299736,200.0,0.0003,120]
[392707021,1761837578057,169.104945,0.00013753,2]
[392707025,1761837603286,1124.20926308,0.00035963,60]
[392707026,1761837658286,1200.0,0.00030136,120]
[392707027,1761837669230,1200.0,0.00030136,120]
[392707028,1761837724840,1493.0,0.00030136,120]
[392707029,1761837787589,1000.0,0.00030136,120]
[392707032,1761837890684,1000.0,0.00030136,120]
[392707033,1761837898314,1000.0,0.00030136,120]
[392707034,1761837905778,1000.0,0.00030136,120]
[392707036,1761837916169,1000.0,0.00030136,120]
[392707039,1761837939960,2000.0,0.00030136,120]
[392707040,1761837983077,1000.0,0.00030136,120]
[392707042,1761838008596,1000.0,0.00030136,120]
[392707052,1761838083217,293.724103,0.00013699,2]
[392707053,1761838083478,293.724103,0.00020187,2]
[392707055,1761838090883,1737.83,0.00035963,60]
[392707060,1761838107853,9243.456849,0.00017,2]
[392707061,1761838107876,10000.01,0.00017,2]
[392707062,1761838107901,10000.01,0.00017,2]
[392707063,1761838107923,10000.01,0.00017,2]
[392707064,1761838107947,10000.01,0.00017,2]
[392707065,1761838107971,10000.01,0.00017,2]
[392707066,1761838107994,4915.46111793,0.00017,2]
[392707067,1761838110377,1341.67029619,0.00015,2]
[392707071,1761838113284,1149.499999,0.00018,2]
[392707072,1761838116834,213.86349571,0.00016,2]
[392707074,1761838119949,2346.83813442,0.0001,2]
[392707077,1761838210027,32.67695675,0.00025105,2]
[392707078,1761838210053,206.03099868,0.00025105,2]
[392707079,1761838229715,300.0,0.00023,2]
[392707085,1761838232734,-653.86969548,0.00025205,2]
[392707086,1761838232744,-150.0,0.00025205,2]
[392707087,1761838232754,-200.0,0.00025205,2]
[392707088,1761838232766,-328.6682095,0.000253,2]
[392707089,1761838232777,-2946.23000188,0.00026,30]
[392707090,1761838232788,-293.724103,0.00026676,2]
[392707091,1761838232797,-97.33486749,0.00027205,2]
[392707092,1761838232812,-79.66513251,0.00027205,2]
[392707093,1761838232822,-176.411727,0.00028219,2]
[392707094,1761838232832,-778.7502261,0.00028666,2]
[392707095,1761838232841,-714.4934666,0.00028666,2]
[392707096,1761838232851,-155.9264537,0.00028666,2]
[392707097,1761838232861,-151.0,0.00029079,2]
[392707098,1761838232870,-151.0,0.00029079,2]
[392707099,1761838232880,-151.0,0.00029079,2]
[392707101,1761838232890,-151.0,0.00029079,2]
[392707103,1761838232899,-151.0,0.00029079,2]
[392707104,1761838232908,-151.0,0.00029079,2]
[392707105,1761838232918,-151.0,0.00029079,2]
[392707106,1761838232934,-151.0,0.00029079,2]
[392707107,1761838232944,-151.0,0.00029079,2]
[392707108,1761838232954,-151.0,0.00029079,2]
[392707109,1761838232965,-151.0,0.00029079,2]
[392707110,1761838232974,-151.0,0.00029079,2]
[392707111,1761838232984,-151.0,0.00029079,2]
[392707112,1761838232993,-151.0,0.00029079,2]
[392707113,1761838233007,-151.0,0.00029079,2]
[392707114,1761838233017,-151.0,0.00029079,2]
[392707115,1761838233026,-151.0,0.00029079,2]
[392707116,1761838233035,-151.0,0.00029079,2]
[392707117,1761838233045,-151.0,0.00029079,2]
[392707118,1761838233055,-151.0,0.00029079,2]
[392707119,1761838233065,-543.60366778,0.0002908,2]
[392707120,1761838233075,-500.0,0.0002908,2]
[392707121,1761838233085,-500.0,0.0002908,2]
[392707122,1761838233094,-236.35003108,0.0002908,2]
[392707123,1761838233104,-50000.0,0.00029081,2]
[392707124,1761838233113,-500.0,0.00029096,4]
[392707125,1761838233123,-245.83,0.00029096,4]
[392707126,1761838233132,-500.0,0.00029098,4]
[392707127,1761838233142,-204.0,0.00029205,2]
[392707128,1761838233151,-300.0,0.00029692,30]
[392707129,1761838233161,-300.0,0.00029692,30]
[392707130,1761838233171,-300.0,0.00029692,30]
[392707131,1761838233181,-300.0,0.00029692,30]
[392707132,1761838233190,-300.0,0.00029692,30]
[392707133,1761838233199,-300.0,0.00029692,30]
[392707134,1761838233209,-300.0,0.00029692,30]
[392707135,1761838233219,-300.0,0.00029692,30]
[392707136,1761838233228,-300.0,0.00029692,30]
[392707137,1761838233238,-300.0,0.00029692,30]
[392707138,1761838233247,-300.0,0.00029692,30]
[392707139,1761838233256,-300.0,0.00029692,30]
[392707140,1761838233265,-300.0,0.00029692,30]
[392707141,1761838233274,-300.0,0.00029692,30]
[392707142,1761838233283,-300.0,0.00029692,30]
[392707143,1761838233292,-2792.82178137,0.00029804,2]
[392707144,1761838233302,-503.68477085,0.00029863,5]
[392707145,1761838233311,-3000.0,0.000302,3]
[392707146,1761838233320,-500.0,0.00030209,4]
[392707147,1761838233329,-3000.0,0.0003021,3]
[392707148,1761838233339,-502.82657164,0.00030218,5]
[392707149,1761838233348,-500.0,0.00030218,5]
[392707150,1761838233358,-500.0,0.00030218,5]
[392707151,1761838233368,-500.0,0.00030218,5]
[392707152,1761838233378,-3000.0,0.0003022,3]
[392707153,1761838233387,-167.833,0.0003022,25]
[392707154,1761838233396,-3000.0,0.0003023,3]
[392707155,1761838233405,-3000.0,0.0003024,3]
[392707156,1761838233415,-3000.0,0.0003025,3]
[392707157,1761838233424,-3000.0,0.0003026,3]
[392707158,1761838233434,-839.73,0.00030269,10]